bitfinex/quotes_SOLUSD_20250904
["timestamp","ask_amount","ask_price","bid_price","bid_amount"]
[1757001091422,38.44,204.45,204.42,0.03]
[1757001091609,0.66,204.44,204.42,0.03]
[1757001092233,0.66,204.43,204.42,0.03]
[1757001095259,8.44766458,204.43,204.42,0.03]
[1757001096114,0.66,204.43,204.42,0.03]
[1757001096312,0.66,204.44,204.42,0.03]
[1757001096523,38.44,204.46,204.43,2.89601463]
[1757001096717,38.44,204.46,204.42,0.72]
[1757001097029,38.44,204.46,204.44,2.89601463]
[1757001097226,0.66,204.46,204.44,2.89601463]
[1757001097427,39.1,204.46,204.44,2.89601463]
[1757001097627,0.66,204.46,204.44,2.89601463]
[1757001097815,39.1,204.46,204.44,2.89601463]
[1757001098332,0.66,204.48,204.44,7.78739096]
[1757001098523,0.66,204.48,204.46,2.89601463]
[1757001098843,38.44,204.47,204.46,2.89601463]
[1757001099062,39.16,204.47,204.46,2.89601463]
[1757001099246,42.05601463,204.47,204.42,2.92601463]
[1757001099449,0.66,204.46,204.42,2.92601463]
[1757001099657,0.66,204.45,204.42,0.03]
[1757001099844,0.66,204.45,204.42,2.92601463]
[1757001100043,0.66,204.44,204.42,2.92601463]
[1757001100361,0.06,204.47,204.43,2.89601463]
[1757001100669,38.44,204.46,204.45,2.89601463]
[1757001100837,38.42,204.46,204.45,2.89601463]
[1757001101946,0.66,204.46,204.45,2.89601463]
[1757001102262,39.08,204.46,204.45,2.89601463]
[1757001102665,0.66,204.46,204.45,2.89601463]
[1757001102844,0.06,204.47,204.45,2.89601463]
[1757001103035,38.48,204.47,204.46,2.89601463]
[1757001103239,0.06,204.47,204.46,2.89601463]
[1757001103470,38.48,204.47,204.46,2.89601463]
[1757001103650,39.14,204.47,204.46,2.89601463]
[1757001104044,0.06,204.47,204.46,2.89601463]
[1757001104439,0.06,204.47,204.46,5.58093221]
[1757001104662,0.06,204.47,204.46,8.47694684]
[1757001110754,0.06,204.47,204.46,5.58093221]
[1757001110947,0.06,204.47,204.46,8.47694684]
[1757001111868,0.06,204.47,204.46,22.07254085]
[1757001114857,0.06,204.47,204.46,102.17254085]
[1757001115048,0.06,204.49,204.46,102.17254085]
[1757001115049,0.06,204.49,204.46,113.75659937]
[1757001115251,0.06,204.49,204.48,2.89601463]
[1757001115856,0.06,204.49,204.48,3.58601463]
[1757001116752,0.06,204.49,204.48,2.89601463]
[1757001116955,0.06,204.49,204.48,7.78646846]
[1757001118170,0.06,204.49,204.48,4.89045383]
[1757001118363,0.76,204.49,204.48,4.89045383]
[1757001118665,0.76,204.49,204.48,7.78646846]
[1757001119470,0.76,204.49,204.47,4.89063741]
[1757001119651,0.06,204.49,204.48,4.52621124]
[1757001120163,0.76,204.49,204.42,118.35954855]
[1757001120364,0.7,204.48,204.47,4.52621124]
[1757001120764,0.06,204.49,204.47,4.52621124]
[1757001120976,0.06,204.49,204.48,4.52621124]
[1757001121552,0.76,204.49,204.48,4.52621124]
[1757001122077,0.76,204.49,204.47,4.52621124]
[1757001122452,0.7,204.48,204.47,4.52621124]
[1757001122653,0.06,204.49,204.42,26.03]
[1757001122858,0.7,204.48,204.45,4.52621124]
[1757001123074,0.7,204.47,204.45,4.52621124]
[1757001123373,0.7,204.46,204.43,4.89164995]
[1757001123576,0.7,204.46,204.45,4.52621124]
[1757001124879,0.06,204.49,204.45,9.41738267]
[1757001125053,0.7,204.48,204.46,4.52621124]
[1757001125250,0.7,204.47,204.43,4.89164995]
[1757001125450,0.7,204.46,204.42,0.03]
[1757001125670,0.7,204.46,204.42,4.55621124]
[1757001125855,0.7,204.45,204.42,9.44809981]
[1757001126177,0.7,204.44,204.42,9.44809981]
[1757001126373,0.7,204.43,204.42,0.03]
[1757001126871,5.22621124,204.43,204.42,0.03]
[1757001127182,5.22621124,204.43,204.39,0.03]
[1757001127183,10.11786119,204.43,204.39,0.03]
[1757001127378,4.52621124,204.4,204.39,0.03]
[1757001127760,5.22621124,204.4,204.39,0.03]
[1757001127964,0.7,204.4,204.39,0.03]
[1757001128260,5.22621124,204.4,204.39,0.03]
[1757001128976,10.11857914,204.4,204.39,0.03]
[1757001132156,5.5923679,204.4,204.39,0.03]
[1757001132359,5.22621124,204.4,204.39,0.03]
[1757001132571,26.7,204.4,204.39,0.03]
[1757001132783,65.08,204.4,204.39,0.03]
[1757001133167,0.7,204.43,204.39,4.55621124]
[1757001133367,0.7,204.42,204.39,4.55621124]
[1757001134106,0.7,204.41,204.39,0.03]
[1757001134458,0.7,204.4,204.39,0.03]
[1757001135967,38.38,204.4,204.39,4.55621124]
[1757001136380,38.38,204.4,204.39,0.03]
[1757001136911,39.08,204.4,204.39,0.03]
[1757001137694,38.38,204.4,204.39,0.03]
[1757001137890,0.66,204.42,204.39,4.55621124]
[1757001138090,38.38,204.42,204.4,4.52621124]
[1757001138501,39.04,204.42,204.4,4.52621124]
[1757001139486,38.38,204.42,204.4,4.52621124]
[1757001139681,0.66,204.42,204.4,4.52621124]
[1757001139887,38.38,204.42,204.4,4.52621124]
[1757001140324,38.38,204.42,204.39,4.55621124]
[1757001140508,0.66,204.41,204.39,0.03]
[1757001140816,0.66,204.41,204.39,4.55621124]
[1757001141311,0.66,204.43,204.39,4.55621124]
[1757001141524,38.38,204.42,204.39,4.55621124]
[1757001141680,4.52621124,204.45,204.39,4.55621124]
[1757001141681,26.66,204.45,204.39,0.73]
[1757001141886,38.38,204.44,204.41,4.52621124]
[1757001142185,0.66,204.43,204.41,4.52621124]
[1757001142828,0.66,204.43,204.39,4.92255997]
[1757001142994,38.38,204.44,204.41,4.52621124]
[1757001143313,39.04,204.44,204.41,4.52621124]
[1757001143518,0.66,204.43,204.4,4.52621124]
[1757001143811,0.66,204.42,204.39,4.55621124]
[1757001144019,47.79772552,204.44,204.39,4.55621124]
[1757001144231,0.66,204.43,204.39,4.55621124]
[1757001144420,38.38,204.42,204.39,4.55621124]
[1757001144808,0.66,204.43,204.39,4.55621124]
[1757001145130,39.04,204.42,204.39,4.55621124]
[1757001145320,0.66,204.41,204.39,0.03]
[1757001145723,0.66,204.4,204.39,0.03]
[1757001146141,42.90621124,204.42,204.39,0.03]
[1757001146142,38.38,204.42,204.39,0.03]
[1757001146307,39.04,204.42,204.39,0.03]
[1757001146508,0.66,204.41,204.39,0.03]
[1757001147323,0.66,204.4,204.39,0.03]
[1757001147526,5.18621124,204.4,204.39,0.03]
[1757001149023,10.07857914,204.4,204.39,0.03]
[1757001149229,23.67417315,204.4,204.39,0.03]
[1757001150409,25.6357748,204.4,204.39,0.03]
[1757001153022,30.16198604,204.4,204.39,0.03]
[1757001153435,25.6357748,204.4,204.39,0.03]
[1757001153926,30.16198604,204.4,204.39,0.03]
[1757001154123,25.6357748,204.4,204.39,0.03]
[1757001155038,63.9957748,204.4,204.39,0.03]
[1757001155232,68.52198604,204.4,204.39,0.03]
[1757001155424,63.9957748,204.4,204.39,0.03]
[1757001155844,59.46956356,204.4,204.39,0.03]
[1757001156145,63.9957748,204.4,204.39,0.03]
[1757001156935,25.6357748,204.4,204.39,0.03]
[1757001157144,63.9957748,204.4,204.39,0.03]
[1757001160242,25.6357748,204.4,204.39,0.03]
[1757001160440,63.9957748,204.4,204.39,0.03]
[1757001160749,89.9957748,204.4,204.39,0.03]
[1757001161129,51.6357748,204.4,204.39,0.03]
[1757001161535,89.9957748,204.4,204.39,0.03]
[1757001162160,76.40018079,204.4,204.39,0.03]
[1757001162450,43.2523679,204.4,204.39,0.03]
[1757001163743,47.77857914,204.4,204.39,0.03]
[1757001163944,48.43857914,204.4,204.39,0.03]
[1757001164355,43.9123679,204.4,204.39,0.03]
[1757001166431,39.02,204.4,204.39,0.03]
[1757001167932,4.61621124,204.42,204.39,5.22621124]
[1757001168141,26.06,204.42,204.41,4.52621124]
[1757001168350,64.42,204.42,204.41,4.52621124]
[1757001168743,0.06,204.42,204.41,5.19621124]
[1757001169060,38.4,204.42,204.41,5.19621124]
[1757001169751,38.4,204.42,204.41,4.52621124]
[1757001170845,0.06,204.42,204.41,4.52621124]
[1757001171155,38.4,204.42,204.41,4.52621124]
[1757001172134,0.06,204.42,204.41,4.52621124]
[1757001172359,38.4,204.42,204.41,4.52621124]
[1757001172552,0.06,204.42,204.41,4.52621124]
[1757001172860,0.06,204.42,204.41,5.19621124]
[1757001173052,38.4,204.42,204.41,5.19621124]
[1757001173239,38.4,204.42,204.41,4.52621124]
[1757001174550,0.06,204.42,204.41,4.52621124]
[1757001174752,38.4,204.42,204.41,4.52621124]
[1757001175563,44.01188924,204.42,204.41,4.52621124]
[1757001175864,38.4,204.42,204.41,4.52621124]
[1757001178872,26.0,204.4,204.39,0.03]
[1757001179069,64.34,204.4,204.39,0.03]
[1757001179244,65.06,204.4,204.39,0.03]
[1757001180544,69.58621124,204.4,204.39,0.03]
[1757001181264,26.72,204.4,204.39,0.03]
[1757001181760,65.04,204.4,204.39,0.03]
[1757001182155,70.8707015,204.4,204.39,0.03]
[1757001182354,67.97035075,204.4,204.39,0.03]
[1757001184567,84.01212871,204.4,204.39,0.03]
[1757001184753,86.91247946,204.4,204.39,0.03]
[1757001185354,84.01212871,204.4,204.39,0.03]
[1757001185665,81.08177796,204.4,204.39,0.03]
[1757001186271,84.01212871,204.4,204.39,0.03]
[1757001186654,29.16618395,204.4,204.39,0.03]
[1757001186856,67.48618395,204.4,204.39,0.03]
[1757001187062,0.06,204.42,204.39,15.20175375]
[1757001187257,0.06,204.42,204.41,2.90035075]
[1757001187458,38.38,204.42,204.41,2.90035075]
[1757001187650,38.38,204.42,204.41,3.57035075]
[1757001188364,0.06,204.42,204.41,3.57035075]
[1757001188580,38.38,204.42,204.41,3.57035075]
[1757001189454,38.38,204.42,204.41,2.90035075]
[1757001190960,38.38,204.42,204.41,3.57035075]
[1757001191365,38.38,204.42,204.41,2.90035075]
[1757001191975,38.38,204.42,204.39,2.93035075]
[1757001192274,39.1,204.42,204.39,0.03]
[1757001192477,42.00035075,204.42,204.39,0.03]
[1757001193164,41.28035075,204.42,204.39,0.03]
[1757001193369,3.62035075,204.41,204.39,0.03]
[1757001193563,38.32,204.4,204.39,0.03]
[1757001196281,38.3,204.4,204.39,0.03]
[1757001196587,0.72,204.41,204.39,0.03]
[1757001196878,38.3,204.4,204.39,0.03]
[1757001199756,38.98,204.4,204.39,0.03]
[1757001202477,2.02150545,204.42,204.39,0.03]
[1757001202785,0.06,204.42,204.4,2.90057593]
[1757001202967,38.3,204.41,204.4,3.60057593]
[1757001203375,38.3,204.41,204.39,0.03]
[1757001203577,38.3,204.41,204.4,3.60057593]
[1757001204768,38.3,204.41,204.4,0.7]
[1757001205090,38.3,204.41,204.4,3.60057593]
[1757001205267,38.3,204.41,204.4,2.90057593]
[1757001207912,38.36,204.42,204.4,3.60057593]
[1757001208098,0.06,204.42,204.41,0.7]
[1757001208391,0.06,204.42,204.41,3.60057593]
[1757001208564,0.06,204.42,204.39,0.03]
[1757001208964,0.06,204.42,204.4,2.90057593]
[1757001209189,0.74,204.42,204.4,2.90057593]
[1757001209389,0.74,204.42,204.39,0.03]
[1757001211390,0.06,204.42,204.39,2.93057593]
[1757001211593,38.34,204.42,204.41,2.90057593]
[1757001211791,0.06,204.42,204.41,3.60057593]
[1757001212199,0.06,204.42,204.41,0.7]
[1757001212397,0.06,204.42,204.41,3.60057593]
[1757001213702,0.06,204.42,204.41,0.7]
[1757001214005,0.06,204.42,204.41,3.60057593]
[1757001214597,0.06,204.42,204.39,4.92254954]
[1757001214804,0.06,204.42,204.4,2.90057593]
[1757001215194,0.06,204.42,204.39,0.03]
[1757001215420,0.74,204.42,204.39,0.03]
[1757001215697,0.74,204.42,204.39,2.93057593]
[1757001216593,0.74,204.42,204.41,2.90057593]
[1757001216594,0.06,204.42,204.41,2.90057593]
[1757001217177,0.06,204.42,204.41,3.60057593]
[1757001218185,0.06,204.42,204.41,5.59212856]
[1757001218399,0.06,204.42,204.41,8.49270449]
[1757001218804,0.06,204.42,204.4,13.59559401]
[1757001219008,0.06,204.42,204.41,2.90057593]
[1757001219879,0.06,204.42,204.41,8.49270449]
[1757001220103,0.06,204.42,204.41,22.0882985]
[1757001220283,0.06,204.42,204.41,22.1182985]
[1757001224188,0.06,204.45,204.42,13.59559401]
[1757001224385,0.06,204.45,204.44,16.49616994]
[1757001224590,0.06,204.45,204.44,42.49616994]
[1757001224895,0.06,204.47,204.45,13.59559401]
[1757001225103,0.06,204.47,204.46,2.90057593]
[1757001225414,0.06,204.47,204.46,3.60057593]
[1757001226116,0.06,204.47,204.46,8.49150814]
[1757001227498,0.06,204.47,204.46,22.08710215]
[1757001227896,0.06,204.47,204.46,19.18652622]
[1757001228095,0.06,204.47,204.46,22.08710215]
[1757001229904,0.06,204.49,204.47,13.59559401]
[1757001230220,0.06,204.49,204.48,28.09847366]
[1757001230398,0.06,204.49,204.48,28.79847366]
[1757001230997,0.06,204.49,204.48,152.04892749]
[1757001232096,0.06,204.49,204.48,99.28604784]
[1757001232423,0.06,204.49,204.48,101.48662377]
[1757001232596,0.06,204.49,204.48,102.18662377]
[1757001232999,0.06,204.49,204.48,101.48662377]
[1757001233925,0.06,204.49,204.48,102.18662377]
[1757001235628,0.06,204.49,204.48,101.48662377]
[1757001236513,0.72,204.49,204.48,18.48604784]
[1757001236706,0.72,204.49,204.48,21.38662377]
[1757001237124,0.06,204.49,204.48,21.38662377]
[1757001239226,0.72,204.49,204.48,18.48604784]
[1757001239528,0.06,204.49,204.48,21.38662377]
[1757001239837,0.06,204.49,204.48,32.98892749]
[1757001240013,0.06,204.49,204.48,21.38662377]
[1757001241528,0.06,204.49,204.48,59.62662377]
[1757001242730,0.06,204.49,204.48,21.38662377]
[1757001243027,0.06,204.49,204.48,59.60662377]
[1757001243411,0.06,204.49,204.48,65.75342128]
[1757001244227,0.06,204.49,204.48,23.70973456]
[1757001244430,0.06,204.49,204.48,66.45342128]
[1757001245841,0.06,204.5,204.49,13.59559401]
[1757001246014,0.06,204.5,204.49,23.34296745]
[1757001246426,0.06,204.5,204.49,28.23318213]
[1757001246719,0.06,204.52,204.51,39.59559401]
[1757001246914,0.06,204.52,204.51,82.33928073]
[1757001248637,0.06,204.52,204.51,87.22901717]
[1757001250125,0.06,204.52,204.51,44.48533045]
[1757001250436,0.72,204.52,204.51,44.48533045]
[1757001250734,0.72,204.52,204.51,49.00901717]
[1757001251245,0.06,204.57,204.56,13.59559401]
[1757001251423,0.06,204.57,204.56,18.11928073]
[1757001252333,0.06,204.57,204.56,23.00782198]
[1757001254143,0.06,204.57,204.55,1.95891182]
[1757001254346,0.06,204.57,204.56,4.52368672]
[1757001255052,0.72,204.57,204.56,4.52368672]
[1757001255937,0.06,204.57,204.56,18.11928073]
[1757001256327,0.06,204.57,204.56,23.00782198]
[1757001258229,0.76,204.57,204.56,4.52368672]
[1757001258632,0.06,204.57,204.56,4.52368672]
[1757001258854,0.76,204.57,204.56,4.52368672]
[1757001259566,0.76,204.57,204.56,9.41222797]
[1757001259729,0.06,204.57,204.56,9.41222797]
[1757001259929,0.06,204.57,204.56,4.88854125]
[1757001260141,0.06,204.57,204.56,9.41222797]
[1757001260554,0.76,204.57,204.56,9.41222797]
[1757001260735,0.06,204.57,204.56,9.41222797]
[1757001261639,0.06,204.57,204.56,18.11928073]
[1757001262731,0.76,204.57,204.54,4.88896458]
[1757001263046,0.7,204.56,204.54,4.88896458]
[1757001263648,0.7,204.56,204.52,4.88949735]
[1757001264045,0.06,204.57,204.53,0.69]
[1757001264349,0.06,204.57,204.56,4.52368672]
[1757001264350,0.76,204.57,204.56,4.52368672]
[1757001264848,0.06,204.57,204.56,18.11928073]
[1757001265834,0.06,204.58,204.56,23.69782198]
[1757001266039,0.06,204.58,204.57,23.33296745]
[1757001266244,0.06,204.6,204.59,39.59559401]
[1757001266438,0.06,204.62,204.6,13.59559401]
[1757001266638,0.06,204.62,204.61,4.52368672]
[1757001267342,0.06,204.62,204.61,9.41103337]
[1757001267737,0.76,204.62,204.6,13.59559401]
[1757001267936,0.06,204.62,204.61,18.11928073]
[1757001268536,0.06,204.62,204.61,13.59559401]
[1757001268739,0.76,204.62,204.61,18.11928073]
[1757001268942,0.06,204.62,204.61,18.11928073]
[1757001269345,0.76,204.62,204.61,18.11928073]
[1757001270461,0.76,204.62,204.61,4.52368672]
[1757001270673,0.76,204.62,204.6,4.52368672]
[1757001270964,0.7,204.61,204.59,80.1]
[1757001271173,0.7,204.6,204.59,80.1]
[1757001272056,0.76,204.62,204.57,18.4838963]
[1757001272249,0.06,204.62,204.61,4.52368672]
[1757001272955,0.76,204.62,204.61,4.52368672]
[1757001273160,0.76,204.62,204.57,13.59559401]
[1757001273351,0.7,204.61,204.6,4.52368672]
[1757001273850,0.7,204.61,204.56,30.88851684]
[1757001274052,0.7,204.6,204.59,4.52368672]
[1757001274858,0.7,204.6,204.55,4.88858326]
[1757001275063,0.7,204.59,204.55,4.88858326]
[1757001275266,0.06,204.62,204.59,0.03]
[1757001275765,0.06,204.6,204.59,0.03]
[1757001275942,0.76,204.6,204.59,0.03]
[1757001279360,38.96,204.6,204.59,0.03]
[1757001279669,0.76,204.6,204.59,0.03]
[1757001279854,38.96,204.6,204.59,0.03]
[1757001280058,0.06,204.6,204.59,4.55368672]
[1757001280259,0.76,204.6,204.59,4.55368672]
[1757001280771,0.06,204.6,204.59,4.55368672]
[1757001281175,0.06,204.6,204.59,0.03]
[1757001281472,0.06,204.6,204.59,4.55368672]
[1757001283669,0.06,204.6,204.59,23.72710515]
[1757001285758,0.06,204.6,204.59,28.25079187]
[1757001287773,0.06,204.6,204.59,23.72710515]
[1757001288763,0.06,204.6,204.59,18.14928073]
[1757001289063,0.74,204.6,204.59,4.55368672]
[1757001289264,0.74,204.6,204.59,0.03]
[1757001289479,0.06,204.6,204.59,9.44151114]
[1757001290069,0.06,204.6,204.59,4.91782442]
[1757001290277,0.06,204.6,204.59,9.44151114]
[1757001290576,0.74,204.6,204.59,4.55368672]
[1757001292174,0.74,204.6,204.59,0.03]
[1757001292486,0.74,204.6,204.59,4.55368672]
[1757001292668,0.06,204.6,204.59,9.44151114]
[1757001294377,0.06,204.6,204.59,23.03710515]
[1757001296377,0.74,204.6,204.59,4.91782442]
[1757001296987,0.06,204.6,204.59,4.91782442]
[1757001297987,0.06,204.6,204.59,4.55368672]
[1757001298172,0.06,204.6,204.59,18.80928073]
[1757001298569,0.06,204.6,204.59,18.14928073]
[1757001299875,0.06,204.6,204.59,18.51341843]
[1757001300181,0.06,204.6,204.59,23.03710515]
[1757001303580,0.74,204.6,204.59,0.03]
[1757001306068,5.62758553,204.6,204.59,0.03]
[1757001306777,43.80758553,204.6,204.59,0.03]
[1757001309381,69.80758553,204.6,204.59,0.03]
[1757001310084,43.80758553,204.6,204.59,0.03]
[1757001310279,26.0,204.57,204.56,0.03]
[1757001310473,30.88830229,204.57,204.56,0.03]
[1757001310700,31.56830229,204.57,204.56,0.03]
[1757001314090,33.52865418,204.57,204.56,0.03]
[1757001314593,71.70865418,204.57,204.56,0.03]
[1757001316195,71.70865418,204.57,204.54,0.03]
[1757001316601,69.74830229,204.57,204.54,0.03]
[1757001316775,1.96035189,204.56,204.54,0.03]
[1757001317180,0.68,204.55,204.54,0.03]
[1757001318001,5.56878024,204.55,204.54,0.03]
[1757001318197,43.74878024,204.55,204.54,0.03]
[1757001318385,46.64575573,204.55,204.54,0.03]
[1757001318990,8.46575573,204.55,204.54,0.03]
[1757001319193,46.64575573,204.55,204.54,0.03]
[1757001320203,8.46575573,204.55,204.54,0.03]
[1757001320510,46.64575573,204.55,204.54,0.03]
[1757001325698,26.0,204.52,204.47,0.03]
[1757001325905,28.89697549,204.48,204.47,0.03]
[1757001326111,67.07697549,204.48,204.47,0.03]
[1757001326290,2.89697549,204.48,204.47,0.03]
[1757001326495,41.07697549,204.48,204.47,0.03]
[1757001327006,45.96742932,204.48,204.47,0.03]
[1757001327201,43.07045383,204.48,204.47,0.03]
[1757001327392,45.96742932,204.48,204.47,0.03]
[1757001327895,38.18,204.5,204.47,0.74]
[1757001328088,38.18,204.5,204.47,3.63697549]
[1757001328293,38.18,204.5,204.48,0.71]
[1757001328505,38.18,204.5,204.49,0.71]
[1757001328702,41.77697549,204.5,204.47,0.03]
[1757001328909,2.89697549,204.48,204.47,0.03]
[1757001329109,45.96742932,204.48,204.47,0.03]
[1757001329614,46.66742932,204.48,204.47,0.03]
[1757001330593,5.59045383,204.48,204.47,0.03]
[1757001330793,69.77045383,204.48,204.47,0.03]
[1757001330997,34.48742932,204.48,204.47,0.03]
[1757001331219,72.66742932,204.48,204.47,0.03]
[1757001331415,30.89045383,204.48,204.47,0.03]
[1757001331619,38.18,204.48,204.47,0.03]
[1757001331798,45.96742932,204.48,204.47,0.03]
[1757001332693,46.66742932,204.48,204.47,0.03]
[1757001336299,72.66742932,204.48,204.47,0.03]
[1757001339702,74.62845395,204.48,204.47,0.03]
[1757001341417,48.62845395,204.48,204.47,0.03]
[1757001345109,47.92845395,204.48,204.47,0.03]
[1757001345318,71.96742932,204.48,204.47,0.03]
[1757001345817,41.07697549,204.48,204.47,0.03]
[1757001347232,38.18,204.48,204.47,0.03]
[1757001347414,28.89697549,204.48,204.47,0.03]
[1757001347613,67.07697549,204.48,204.47,0.03]
[1757001348231,69.07045383,204.48,204.47,0.03]
[1757001348638,71.96742932,204.48,204.47,0.03]
[1757001351139,72.66742932,204.48,204.47,0.03]
[1757001351315,67.07697549,204.48,204.47,0.72]
[1757001351517,38.18,204.48,204.47,0.72]
[1757001352135,41.77697549,204.48,204.47,0.03]
[1757001352519,41.07697549,204.48,204.47,0.03]
[1757001353442,46.66742932,204.48,204.47,0.03]
[1757001353734,45.96742932,204.48,204.47,0.03]
[1757001353918,38.18,204.48,204.47,0.03]
[1757001354117,41.07697549,204.48,204.47,0.03]
[1757001356113,2.89697549,204.48,204.47,0.03]
[1757001356309,38.18,204.48,204.47,0.72]
[1757001356827,38.18,204.48,204.47,3.61697549]
[1757001357339,38.18,204.48,204.47,0.72]
[1757001357536,38.18,204.48,204.47,0.03]
[1757001358046,38.18,204.48,204.47,3.61697549]
[1757001358237,38.18,204.48,204.47,0.72]
[1757001358541,38.18,204.48,204.47,0.03]
[1757001358915,26.0,204.5,204.47,0.72]
[1757001359117,38.16,204.49,204.47,0.72]
[1757001359633,38.16,204.49,204.47,0.03]
[1757001360416,3.59697549,204.48,204.47,0.03]
[1757001360828,0.7,204.48,204.47,0.03]
[1757001361251,3.59697549,204.48,204.47,0.03]
[1757001361623,8.48742932,204.48,204.47,0.03]
[1757001363025,22.08302333,204.48,204.47,0.03]
[1757001363827,13.59559401,204.47,204.45,0.03]
[1757001364030,54.6525695,204.46,204.45,0.03]
[1757001364246,55.3525695,204.46,204.45,0.03]
[1757001365839,62.20500716,204.46,204.45,0.03]
[1757001367538,26.0,204.43,204.42,0.03]
[1757001367846,73.58398049,204.43,204.42,0.03]
[1757001368025,74.28398049,204.43,204.42,0.03]
[1757001368226,76.24567834,204.43,204.42,0.03]
[1757001369023,38.08567834,204.43,204.42,0.03]
[1757001369558,76.24567834,204.43,204.42,0.03]
[1757001371643,71.7133478,204.43,204.42,0.03]
[1757001371848,76.24567834,204.43,204.42,0.03]
[1757001373139,89.84127235,204.43,204.42,0.03]
[1757001375256,51.68127235,204.43,204.42,0.03]
[1757001375564,89.84127235,204.43,204.42,0.03]
[1757001378357,89.84127235,204.43,204.37,0.03]
[1757001378760,4.53233054,204.41,204.37,0.03]
[1757001379061,42.69233054,204.41,204.37,0.03]
[1757001379256,43.37233054,204.41,204.37,0.03]
[1757001379457,52.79678964,204.41,204.37,0.03]
[1757001379661,26.0,204.39,204.37,0.03]
[1757001379863,68.69233054,204.39,204.37,0.03]
[1757001380165,69.37233054,204.39,204.37,0.03]
[1757001381066,64.16,204.39,204.37,0.03]
[1757001381264,69.37233054,204.39,204.37,0.03]
[1757001381561,74.26493781,204.39,204.37,0.03]
[1757001382255,76.22702056,204.39,204.37,0.03]
[1757001384266,38.06702056,204.39,204.37,0.03]
[1757001384449,76.22702056,204.39,204.37,0.03]
[1757001388459,74.72702056,204.39,204.37,0.03]
[1757001389156,74.04702056,204.39,204.37,0.03]
[1757001389957,74.72702056,204.39,204.37,0.03]
[1757001392575,74.72702056,204.39,204.35,0.03]
[1757001392576,26.0,204.36,204.35,0.03]
[1757001392755,42.69233054,204.36,204.35,0.03]
[1757001392956,43.37233054,204.36,204.35,0.03]
[1757001393157,45.3346058,204.36,204.35,0.03]
[1757001395975,50.2279313,204.36,204.35,0.03]
[1757001396992,66.7754302,204.36,204.35,0.03]
[1757001399067,66.7754302,204.36,204.34,1e-08]
[1757001399068,13.59559401,204.35,204.34,1e-08]
[1757001399270,23.5755836,204.35,204.34,1e-08]
[1757001399471,24.2555836,204.35,204.33,1e-08]
[1757001399783,62.93248144,204.34,204.33,1e-08]
[1757001400273,66.1082356,204.34,204.33,1e-08]
[1757001401158,71.00204004,204.34,204.33,1e-08]
[1757001401656,32.84204004,204.34,204.33,1e-08]
[1757001401888,71.00204004,204.34,204.33,1e-08]
[1757001403110,32.84204004,204.34,204.33,1e-08]
[1757001403381,71.00204004,204.34,204.33,1e-08]
[1757001403754,72.96479673,204.34,204.33,1e-08]
[1757001404168,34.80479673,204.34,204.33,1e-08]
[1757001404383,72.96479673,204.34,204.33,1e-08]
[1757001407593,34.80479673,204.34,204.33,1e-08]
[1757001407800,72.96479673,204.34,204.33,1e-08]
[1757001408588,30.27246619,204.34,204.33,1e-08]
[1757001408764,34.82479673,204.34,204.33,1e-08]